[Event "*** Titled Tuesday Blitz"]
[Site "Chess.com"]
[Date "2020.05.26"]
[Round "4"]
[White "ChristianAlm"]
[Black "jd001"]
[Result "1-0"]
[WhiteElo "2398"]
[BlackElo "2176"]
[TimeControl "180+1"]
[EndTime "10:35:58 PDT"]
[Termination "ChristianAlm won by resignation"]

1. d4 {[%clk 0:03:00.9]} 1... e6 {[%clk 0:02:59.7]} 2. e4 {[%clk 0:02:58.5]}
2... d5 {[%clk 0:02:58.8]} 3. Nc3 {[%clk 0:02:58]} 3... Nf6 {[%clk 0:02:58.2]}
4. Bg5 {[%clk 0:02:57.7]} 4... dxe4 {[%clk 0:02:57.2]} 5. Nxe4 {[%clk
0:02:54.5]} 5... Be7 {[%clk 0:02:56.8]} 6. Bxf6 {[%clk 0:02:53.1]} 6... gxf6
{[%clk 0:02:57.3]} 7. Nf3 {[%clk 0:02:51.2]} 7... a6 {[%clk 0:02:57.7]} 8. Bd3
{[%clk 0:02:50.8]} 8... f5 {[%clk 0:02:57.5]} 9. Ng3 {[%clk 0:02:49.3]} 9... c5
{[%clk 0:02:57]} 10. dxc5 {[%clk 0:02:48.4]} 10... Bxc5 {[%clk 0:02:56.3]} 11.
Qd2 {[%clk 0:02:44]} 11... Nc6 {[%clk 0:02:55.8]} 12. O-O-O {[%clk 0:02:43.1]}
12... Qb6 {[%clk 0:02:16.4]} 13. Rhe1 {[%clk 0:02:34.7]} 13... Nb4 {[%clk
0:02:04.2]} 14. Kb1 {[%clk 0:02:22.7]} 14... Nxd3 {[%clk 0:02:01.2]} 15. Qxd3
{[%clk 0:02:19.2]} 15... O-O {[%clk 0:01:46.3]} 16. Qd2 {[%clk 0:02:07.5]} 16...
Be7 {[%clk 0:01:10.3]} 17. Qh6 {[%clk 0:01:50.8]} 17... Kh8 {[%clk 0:00:59.5]}
18. Ng5 {[%clk 0:01:38.6]} 1-0

[Event "*** Titled Tuesday Blitz"]
[Site "Chess.com"]
[Date "2020.05.26"]
[Round "4"]
[White "Revnov"]
[Black "Grischuk"]
[Result "1-0"]
[WhiteElo "2692"]
[BlackElo "3079"]
[TimeControl "180+1"]
[EndTime "10:35:59 PDT"]
[Termination "Revnov won by resignation"]

1. b3 {[%clk 0:03:00.9]} 1... d5 {[%clk 0:02:59.1]} 2. Bb2 {[%clk 0:03:01.2]}
2... Bf5 {[%clk 0:02:59.8]} 3. e3 {[%clk 0:03:01.1]} 3... e6 {[%clk 0:03:00.5]}
4. d4 {[%clk 0:02:58.9]} 4... Nf6 {[%clk 0:02:59.3]} 5. Nf3 {[%clk 0:02:59.5]}
5... Nbd7 {[%clk 0:02:58.7]} 6. Bd3 {[%clk 0:03:00]} 6... Bd6 {[%clk 0:02:52.8]}
7. Nbd2 {[%clk 0:03:00.1]} 7... O-O {[%clk 0:02:51.3]} 8. Qe2 {[%clk 0:02:59.9]}
8... Ne4 {[%clk 0:02:47.9]} 9. Bxe4 {[%clk 0:02:58.8]} 9... dxe4 {[%clk
0:02:40.1]} 10. Ne5 {[%clk 0:02:58.8]} 10... Nxe5 {[%clk 0:02:29]} 11. dxe5
{[%clk 0:02:59.7]} 11... Bb4 {[%clk 0:02:28.4]} 12. O-O-O {[%clk 0:02:56.9]}
12... Qe7 {[%clk 0:02:21.2]} 13. g4 {[%clk 0:02:47.8]} 13... Bg6 {[%clk
0:02:21.5]} 14. h4 {[%clk 0:02:47.9]} 14... h6 {[%clk 0:02:22.2]} 15. g5 {[%clk
0:02:26.8]} 15... h5 {[%clk 0:02:22.2]} 16. Kb1 {[%clk 0:02:16.7]} 16... a5
{[%clk 0:02:18.5]} 17. a4 {[%clk 0:02:15.4]} 17... Rfd8 {[%clk 0:02:15.2]} 18.
Nc4 {[%clk 0:02:15.1]} 18... Rd5 {[%clk 0:02:14.9]} 19. Rd4 {[%clk 0:01:47.3]}
1-0

[Event "*** Titled Tuesday Blitz"]
[Site "Chess.com"]
[Date "2020.05.26"]
[Round "4"]
[White "aNaartjieZA"]
[Black "isla88"]
[Result "1-0"]
[WhiteElo "2581"]
[BlackElo "2312"]
[TimeControl "180+1"]
[EndTime "10:35:59 PDT"]
[Termination "aNaartjieZA won by resignation"]

1. e4 {[%clk 0:03:00.9]} 1... c5 {[%clk 0:02:59.2]} 2. Nf3 {[%clk 0:03:01.1]}
2... Nc6 {[%clk 0:02:59.1]} 3. g3 {[%clk 0:03:01]} 3... e5 {[%clk 0:02:55.9]} 4.
Bg2 {[%clk 0:03:00.5]} 4... g6 {[%clk 0:02:56.4]} 5. O-O {[%clk 0:03:00.2]} 5...
Bg7 {[%clk 0:02:57]} 6. d3 {[%clk 0:02:59.8]} 6... Nge7 {[%clk 0:02:57.6]} 7.
Nbd2 {[%clk 0:02:58.9]} 7... O-O {[%clk 0:02:55.7]} 8. a3 {[%clk 0:02:57.2]}
8... d6 {[%clk 0:02:54.6]} 9. c3 {[%clk 0:02:56.6]} 9... h6 {[%clk 0:02:53.9]}
10. b4 {[%clk 0:02:56.7]} 10... Be6 {[%clk 0:02:52.8]} 11. Bb2 {[%clk
0:02:56.6]} 11... Qd7 {[%clk 0:02:50.3]} 12. Re1 {[%clk 0:02:53]} 12... f5
{[%clk 0:02:50.1]} 13. exf5 {[%clk 0:02:51.9]} 13... gxf5 {[%clk 0:02:40.3]} 14.
Nh4 {[%clk 0:02:51.8]} 14... f4 {[%clk 0:02:38.5]} 15. Ne4 {[%clk 0:02:47.9]}
15... c4 {[%clk 0:02:27.8]} 16. dxc4 {[%clk 0:02:43.9]} 16... Bxc4 {[%clk
0:02:25.9]} 17. Qxd6 {[%clk 0:02:42.5]} 17... Qg4 {[%clk 0:02:15]} 18. h3 {[%clk
0:02:23.9]} 18... Qh5 {[%clk 0:02:07.8]} 19. Qc5 {[%clk 0:02:13.8]} 19... fxg3
{[%clk 0:01:54.5]} 20. fxg3 {[%clk 0:02:10.9]} 20... Be6 {[%clk 0:01:48.8]} 21.
c4 {[%clk 0:02:05.9]} 21... Rad8 {[%clk 0:01:37]} 22. b5 {[%clk 0:01:59.1]}
22... Nd4 {[%clk 0:01:32.6]} 23. Bxd4 {[%clk 0:01:53.6]} 23... Rxd4 {[%clk
0:01:31]} 24. Qxe7 {[%clk 0:01:52.9]} 24... Bxc4 {[%clk 0:01:30.1]} 25. g4
{[%clk 0:01:47.5]} 25... Qf7 {[%clk 0:01:20.1]} 26. Qxf7+ {[%clk 0:01:47.2]}
26... Rxf7 {[%clk 0:01:21]} 27. Nf5 {[%clk 0:01:47.2]} 27... Rd3 {[%clk
0:01:17]} 28. Ned6 {[%clk 0:01:44.3]} 28... Rc7 {[%clk 0:01:13.6]} 29. Nxc4
{[%clk 0:01:44.3]} 29... Rxc4 {[%clk 0:01:12.8]} 30. Bf1 {[%clk 0:01:44.3]}
30... e4 {[%clk 0:01:09.6]} 31. Bxd3 {[%clk 0:01:44.3]} 31... exd3 {[%clk
0:01:09.9]} 32. Nxg7 {[%clk 0:01:43.8]} 1-0

[Event "*** Titled Tuesday Blitz"]
[Site "Chess.com"]
[Date "2020.05.26"]
[Round "4"]
[White "bmt011"]
[Black "CrazyMartian"]
[Result "0-1"]
[WhiteElo "2065"]
[BlackElo "2297"]
[TimeControl "180+1"]
[EndTime "10:36:00 PDT"]
[Termination "CrazyMartian won on time"]

1. d4 {[%clk 0:03:00.9]} 1... d5 {[%clk 0:02:59.5]} 2. Bf4 {[%clk 0:03:00.8]}
2... Nf6 {[%clk 0:02:59.1]} 3. e3 {[%clk 0:03:00.4]} 3... e6 {[%clk 0:02:58.7]}
4. Nf3 {[%clk 0:02:59.8]} 4... Bd6 {[%clk 0:02:58.8]} 5. Ne5 {[%clk 0:02:59.7]}
5... Nbd7 {[%clk 0:02:45.9]} 6. Nd2 {[%clk 0:02:57.9]} 6... O-O {[%clk
0:02:45.1]} 7. Bd3 {[%clk 0:02:54.9]} 7... b6 {[%clk 0:02:40.8]} 8. Nc6 {[%clk
0:02:30.3]} 8... Qe8 {[%clk 0:02:37.5]} 9. Bxd6 {[%clk 0:02:30.5]} 9... cxd6
{[%clk 0:02:37.8]} 10. Nb4 {[%clk 0:02:28.6]} 10... a5 {[%clk 0:02:31.4]} 11.
Nc6 {[%clk 0:02:27.9]} 11... Bb7 {[%clk 0:02:29.5]} 12. Bb5 {[%clk 0:02:11.7]}
12... Rc8 {[%clk 0:02:29]} 13. Na7 {[%clk 0:02:10.1]} 13... Ra8 {[%clk
0:02:18.7]} 14. Nc6 {[%clk 0:02:06.5]} 14... Nb8 {[%clk 0:02:06.3]} 0-1

[Event "*** Titled Tuesday Blitz"]
[Site "Chess.com"]
[Date "2020.05.26"]
[Round "4"]
[White "Vlad_Lukiianchuk"]
[Black "OK97"]
[Result "0-1"]
[WhiteElo "2522"]
[BlackElo "2787"]
[TimeControl "180+1"]
[EndTime "10:36:01 PDT"]
[Termination "OK97 won by resignation"]

1. d4 {[%clk 0:03:00.9]} 1... Nf6 {[%clk 0:02:59]} 2. c4 {[%clk 0:03:01]} 2...
e6 {[%clk 0:02:59.4]} 3. Nc3 {[%clk 0:03:00.6]} 3... Bb4 {[%clk 0:02:59.2]} 4.
Bg5 {[%clk 0:02:59.1]} 4... h6 {[%clk 0:02:53.4]} 5. Bh4 {[%clk 0:02:52.5]} 5...
c5 {[%clk 0:02:53.8]} 6. Rc1 {[%clk 0:02:37.1]} 6... cxd4 {[%clk 0:02:37.2]} 7.
Qxd4 {[%clk 0:02:36.1]} 7... Nc6 {[%clk 0:02:37.8]} 8. Qd2 {[%clk 0:02:27.4]}
8... g5 {[%clk 0:02:33.9]} 9. Bg3 {[%clk 0:02:24.6]} 9... Ne4 {[%clk 0:02:31.2]}
10. Qd3 {[%clk 0:02:22.1]} 10... d5 {[%clk 0:02:02.8]} 11. f3 {[%clk 0:01:55.2]}
11... Nxg3 {[%clk 0:01:45.9]} 12. hxg3 {[%clk 0:01:56.1]} 12... d4 {[%clk
0:01:45.8]} 13. a3 {[%clk 0:01:53.2]} 13... Ba5 {[%clk 0:01:04.9]} 14. b4 {[%clk
0:01:37.3]} 14... Nxb4 {[%clk 0:01:01.5]} 15. axb4 {[%clk 0:01:36.8]} 15... Bxb4
{[%clk 0:01:02.4]} 16. e4 {[%clk 0:01:31.1]} 16... dxc3 {[%clk 0:00:56.8]} 17.
Qc2 {[%clk 0:01:20.4]} 17... Qd2+ {[%clk 0:00:56.4]} 0-1

[Event "*** Titled Tuesday Blitz"]
[Site "Chess.com"]
[Date "2020.05.26"]
[Round "4"]
[White "KuzubovYuriy"]
[Black "Thee-Chessboy"]
[Result "1-0"]
[WhiteElo "2771"]
[BlackElo "2519"]
[TimeControl "180+1"]
[EndTime "10:36:17 PDT"]
[Termination "KuzubovYuriy won by resignation"]

1. d4 {[%clk 0:03:00.9]} 1... Nf6 {[%clk 0:02:59.7]} 2. c4 {[%clk 0:03:00.7]}
2... e6 {[%clk 0:03:00]} 3. Nf3 {[%clk 0:03:00.6]} 3... c5 {[%clk 0:03:00.2]} 4.
d5 {[%clk 0:03:00.6]} 4... exd5 {[%clk 0:03:00.4]} 5. cxd5 {[%clk 0:03:01.5]}
5... d6 {[%clk 0:03:01.3]} 6. Nc3 {[%clk 0:03:02.1]} 6... a6 {[%clk 0:03:01.7]}
7. a4 {[%clk 0:03:01.4]} 7... g6 {[%clk 0:03:02.3]} 8. Bf4 {[%clk 0:03:02]} 8...
Bg7 {[%clk 0:03:02.8]} 9. e3 {[%clk 0:03:02.6]} 9... O-O {[%clk 0:03:03.4]} 10.
Be2 {[%clk 0:03:02.6]} 10... Qe7 {[%clk 0:03:03.7]} 11. O-O {[%clk 0:02:59.6]}
11... Nbd7 {[%clk 0:03:03.5]} 12. Nd2 {[%clk 0:02:57.4]} 12... Ne8 {[%clk
0:03:03.1]} 13. Nc4 {[%clk 0:02:51.9]} 13... f5 {[%clk 0:03:03.5]} 14. Bg3
{[%clk 0:02:46]} 14... g5 {[%clk 0:03:02.4]} 15. f4 {[%clk 0:02:37.5]} 15... g4
{[%clk 0:03:00.9]} 16. e4 {[%clk 0:02:33.6]} 16... fxe4 {[%clk 0:02:54.8]} 17.
Bxg4 {[%clk 0:02:31.5]} 17... Ndf6 {[%clk 0:02:55.2]} 18. Bxc8 {[%clk
0:02:22.5]} 18... Rxc8 {[%clk 0:02:55.4]} 19. Re1 {[%clk 0:02:16.4]} 19... Nc7
{[%clk 0:02:53.3]} 20. Bh4 {[%clk 0:02:14.2]} 20... Qd7 {[%clk 0:02:38]} 21. Nb6
{[%clk 0:02:00.5]} 21... Qf5 {[%clk 0:02:37.7]} 22. Nxc8 {[%clk 0:01:58.8]}
22... Rxc8 {[%clk 0:02:38.1]} 23. Bxf6 {[%clk 0:01:58.2]} 23... Bxf6 {[%clk
0:02:38.3]} 24. Nxe4 {[%clk 0:01:58.1]} 24... Bd4+ {[%clk 0:02:38.4]} 25. Kh1
{[%clk 0:01:57.5]} 25... Qxd5 {[%clk 0:02:38.3]} 26. Ra3 {[%clk 0:01:49.5]}
26... Kh8 {[%clk 0:02:36.5]} 27. Ng5 {[%clk 0:01:40.5]} 27... Rg8 {[%clk
0:02:22]} 28. Rh3 {[%clk 0:01:30.4]} 28... Rg7 {[%clk 0:02:22]} 29. Qc2 {[%clk
0:01:17.3]} 29... Qg8 {[%clk 0:02:13.4]} 30. Qf5 {[%clk 0:01:06]} 30... b5
{[%clk 0:01:52.8]} 31. Nxh7 {[%clk 0:00:58.8]} 31... Rxh7 {[%clk 0:01:47.9]} 32.
Rxh7+ {[%clk 0:00:58.8]} 32... Qxh7 {[%clk 0:01:47.8]} 33. Qc8+ {[%clk
0:00:59.5]} 33... Kg7 {[%clk 0:01:46.7]} 34. Re7+ {[%clk 0:00:57.9]} 1-0

[Event "*** Titled Tuesday Blitz"]
[Site "Chess.com"]
[Date "2020.05.26"]
[Round "4"]
[White "velemajstor767276"]
[Black "AcsinteMatei"]
[Result "1-0"]
[WhiteElo "2594"]
[BlackElo "2352"]
[TimeControl "180+1"]
[EndTime "10:36:36 PDT"]
[Termination "velemajstor767276 won by resignation"]

1. d4 {[%clk 0:03:00.9]} 1... Nf6 {[%clk 0:02:59]} 2. Bg5 {[%clk 0:02:57.3]}
2... Ne4 {[%clk 0:02:53.8]} 3. h4 {[%clk 0:02:57.2]} 3... d5 {[%clk 0:02:52.4]}
4. Nd2 {[%clk 0:02:56]} 4... Nxg5 {[%clk 0:02:45]} 5. hxg5 {[%clk 0:02:55.8]}
5... Bf5 {[%clk 0:02:38]} 6. Ngf3 {[%clk 0:02:54.2]} 6... e6 {[%clk 0:02:35]} 7.
c3 {[%clk 0:02:50.7]} 7... c5 {[%clk 0:02:34.1]} 8. e4 {[%clk 0:02:28.7]} 8...
dxe4 {[%clk 0:02:22.7]} 9. Bb5+ {[%clk 0:02:27.5]} 9... Nc6 {[%clk 0:02:22.5]}
10. Ne5 {[%clk 0:02:24.9]} 10... Rc8 {[%clk 0:02:22.5]} 11. g4 {[%clk 0:02:12]}
11... Bg6 {[%clk 0:01:42.1]} 12. Nxg6 {[%clk 0:01:29.6]} 12... fxg6 {[%clk
0:01:43]} 13. Qb3 {[%clk 0:01:29.6]} 13... cxd4 {[%clk 0:01:11.2]} 14. Qxe6+
{[%clk 0:01:24]} 14... Be7 {[%clk 0:01:11.4]} 15. Nxe4 {[%clk 0:01:07.9]} 15...
Qd7 {[%clk 0:00:55.9]} 16. Nd6+ {[%clk 0:01:04.7]} 16... Qxd6 {[%clk 0:00:56.1]}
17. Qxc8+ {[%clk 0:01:04.8]} 17... Kf7 {[%clk 0:00:56.1]} 18. Bc4+ {[%clk
0:00:59]} 1-0

[Event "*** Titled Tuesday Blitz"]
[Site "Chess.com"]
[Date "2020.05.26"]
[Round "4"]
[White "MusicCityMaster"]
[Black "Swarajan"]
[Result "1-0"]
[WhiteElo "2354"]
[BlackElo "2046"]
[TimeControl "180+1"]
[EndTime "10:36:37 PDT"]
[Termination "MusicCityMaster won by resignation"]

1. e4 {[%clk 0:03:00.9]} 1... c5 {[%clk 0:02:59.2]} 2. Nf3 {[%clk 0:02:59.8]}
2... d6 {[%clk 0:02:58.9]} 3. d4 {[%clk 0:03:00.3]} 3... cxd4 {[%clk 0:02:58.2]}
4. Nxd4 {[%clk 0:03:01.2]} 4... Nf6 {[%clk 0:02:58.7]} 5. Nc3 {[%clk 0:03:01.6]}
5... g6 {[%clk 0:02:59]} 6. Bg5 {[%clk 0:03:00.1]} 6... Bg7 {[%clk 0:02:58.9]}
7. Bb5+ {[%clk 0:02:59.6]} 7... Nbd7 {[%clk 0:02:58]} 8. Qe2 {[%clk 0:02:59.1]}
8... a6 {[%clk 0:02:58]} 9. Ba4 {[%clk 0:02:58.9]} 9... b5 {[%clk 0:02:57.6]}
10. Bb3 {[%clk 0:02:58.5]} 10... O-O {[%clk 0:02:57.7]} 11. O-O-O {[%clk
0:02:58]} 11... Bb7 {[%clk 0:02:55.2]} 12. f4 {[%clk 0:02:41.3]} 12... Qb6
{[%clk 0:02:51.7]} 13. e5 {[%clk 0:02:35.5]} 13... dxe5 {[%clk 0:02:26.6]} 14.
fxe5 {[%clk 0:02:35.3]} 14... Nxe5 {[%clk 0:02:21.8]} 15. Qxe5 {[%clk
0:02:14.7]} 15... Nd5 {[%clk 0:02:21.6]} 16. Nxd5 {[%clk 0:02:11.1]} 16... Bxd5
{[%clk 0:02:15.8]} 17. Qxd5 {[%clk 0:02:07.9]} 17... Rad8 {[%clk 0:02:01]} 18.
Qf3 {[%clk 0:01:57.9]} 18... Rxd4 {[%clk 0:01:55.8]} 19. Bxe7 {[%clk 0:01:57]}
19... Rc8 {[%clk 0:01:34.4]} 20. Qxf7+ {[%clk 0:01:47.3]} 20... Kh8 {[%clk
0:01:34]} 21. Rhf1 {[%clk 0:01:25.2]} 21... a5 {[%clk 0:01:03.3]} 22. Rxd4
{[%clk 0:01:14.5]} 22... Qxd4 {[%clk 0:00:59.5]} 23. Bf6 {[%clk 0:01:14.6]} 1-0

[Event "*** Titled Tuesday Blitz"]
[Site "Chess.com"]
[Date "2020.05.26"]
[Round "4"]
[White "Kildepiotr"]
[Black "abubakrtagelsir"]
[Result "0-1"]
[WhiteElo "2473"]
[BlackElo "2319"]
[TimeControl "180+1"]
[EndTime "10:36:38 PDT"]
[Termination "abubakrtagelsir won by resignation"]

1. Nf3 {[%clk 0:03:00.9]} 1... Nf6 {[%clk 0:02:57.9]} 2. g3 {[%clk 0:02:59.8]}
2... g6 {[%clk 0:02:57.9]} 3. Bg2 {[%clk 0:03:00.2]} 3... Bg7 {[%clk 0:02:57.8]}
4. O-O {[%clk 0:03:01.1]} 4... O-O {[%clk 0:02:57.5]} 5. d4 {[%clk 0:03:01.3]}
5... d6 {[%clk 0:02:57.4]} 6. Nbd2 {[%clk 0:03:01.1]} 6... c6 {[%clk 0:02:54.9]}
7. e4 {[%clk 0:03:01.1]} 7... Nbd7 {[%clk 0:02:51.5]} 8. Qe2 {[%clk 0:03:01.2]}
8... e5 {[%clk 0:02:51.2]} 9. dxe5 {[%clk 0:03:01.1]} 9... dxe5 {[%clk 0:02:51]}
10. a4 {[%clk 0:03:00.8]} 10... Re8 {[%clk 0:02:48.8]} 11. b3 {[%clk 0:03:00.5]}
11... a5 {[%clk 0:02:43]} 12. Nc4 {[%clk 0:02:55.5]} 12... Qc7 {[%clk
0:02:41.5]} 13. Rd1 {[%clk 0:02:54.6]} 13... Bf8 {[%clk 0:02:40.2]} 14. Bb2
{[%clk 0:02:53.7]} 14... Bc5 {[%clk 0:02:33.2]} 15. Bh3 {[%clk 0:02:44]} 15...
h5 {[%clk 0:02:23.9]} 16. Kg2 {[%clk 0:02:41.5]} 16... Ng4 {[%clk 0:02:19.8]}
17. Bxg4 {[%clk 0:02:40.3]} 17... hxg4 {[%clk 0:02:18.9]} 18. Nfd2 {[%clk
0:02:30.9]} 18... Nf8 {[%clk 0:02:16.5]} 19. Ne3 {[%clk 0:02:24.3]} 19... Bxe3
{[%clk 0:02:03.6]} 20. Qxe3 {[%clk 0:02:25.2]} 20... Ne6 {[%clk 0:02:02.9]} 21.
Nc4 {[%clk 0:02:22.2]} 21... f6 {[%clk 0:01:56]} 22. Rd2 {[%clk 0:01:47.7]}
22... Qh7 {[%clk 0:01:52.5]} 23. Rad1 {[%clk 0:01:33.4]} 23... Qh3+ {[%clk
0:01:50.7]} 24. Kh1 {[%clk 0:01:26.2]} 24... Ng5 {[%clk 0:01:48.8]} 25. Nxe5
{[%clk 0:01:15.6]} 25... Rxe5 {[%clk 0:01:40.7]} 26. Bxe5 {[%clk 0:01:14.8]}
26... Nf3 {[%clk 0:01:35.8]} 27. Rd8+ {[%clk 0:01:13.3]} 27... Kf7 {[%clk
0:01:21.3]} 28. R1d7+ {[%clk 0:01:08.9]} 28... Bxd7 {[%clk 0:01:20.6]} 29. Rxd7+
{[%clk 0:01:09.3]} 29... Kg8 {[%clk 0:01:17.1]} 0-1

[Event "*** Titled Tuesday Blitz"]
[Site "Chess.com"]
[Date "2020.05.26"]
[Round "4"]
[White "Y0ung_Capablanca"]
[Black "BIG_Pirate"]
[Result "1-0"]
[WhiteElo "2666"]
[BlackElo "2321"]
[TimeControl "180+1"]
[EndTime "10:36:39 PDT"]
[Termination "Y0ung_Capablanca won on time"]

1. e4 {[%clk 0:03:00.9]} 1... d5 {[%clk 0:02:59.9]} 2. exd5 {[%clk 0:02:57.2]}
2... Qxd5 {[%clk 0:03:00.8]} 3. Nf3 {[%clk 0:02:57.8]} 3... Bg4 {[%clk
0:02:57.9]} 4. Be2 {[%clk 0:02:58.3]} 4... Nc6 {[%clk 0:02:54.1]} 5. O-O {[%clk
0:02:58.3]} 5... O-O-O {[%clk 0:02:53.2]} 6. d3 {[%clk 0:02:58.2]} 6... Nf6
{[%clk 0:02:48.6]} 7. Nc3 {[%clk 0:02:56.9]} 7... Qf5 {[%clk 0:02:48]} 8. Ng5
{[%clk 0:02:43.5]} 8... Bxe2 {[%clk 0:02:42.5]} 9. Nxe2 {[%clk 0:02:42.9]} 9...
Nd5 {[%clk 0:02:25.6]} 10. Ng3 {[%clk 0:02:38.1]} 10... Qg6 {[%clk 0:02:24.9]}
11. Qh5 {[%clk 0:02:30.6]} 11... Ne5 {[%clk 0:00:53.8]} 12. Qxg6 {[%clk
0:02:28.3]} 12... fxg6 {[%clk 0:00:29.3]} 13. d4 {[%clk 0:02:25.9]} 13... h6
{[%clk 0:00:27.7]} 14. dxe5 {[%clk 0:02:26]} 14... hxg5 {[%clk 0:00:27.4]} 15.
Bxg5 {[%clk 0:02:26.6]} 15... Rd7 {[%clk 0:00:14.5]} 16. Rad1 {[%clk 0:02:24.2]}
16... e6 {[%clk 0:00:14.3]} 17. c4 {[%clk 0:02:24.3]} 17... Ne7 {[%clk
0:00:13.5]} 18. Rxd7 {[%clk 0:02:23.6]} 18... Kxd7 {[%clk 0:00:13.7]} 19. Rd1+
{[%clk 0:02:24.3]} 19... Ke8 {[%clk 0:00:09.3]} 20. b3 {[%clk 0:02:23.2]} 20...
Nc6 {[%clk 0:00:09.3]} 21. f4 {[%clk 0:02:13.8]} 21... Bc5+ {[%clk 0:00:07.3]}
22. Kh1 {[%clk 0:02:14.2]} 22... a5 {[%clk 0:00:04.5]} 23. Ne4 {[%clk
0:02:14.6]} 23... Bb4 {[%clk 0:00:03.3]} 24. g3 {[%clk 0:02:11.2]} 24... Rf8
{[%clk 0:00:03.1]} 25. Kg2 {[%clk 0:02:11.6]} 25... Rf7 {[%clk 0:00:03.4]} 26.
h4 {[%clk 0:02:09.2]} 26... Rd7 {[%clk 0:00:03.7]} 27. Rxd7 {[%clk 0:02:09.7]}
27... Kxd7 {[%clk 0:00:04.6]} 28. Kf3 {[%clk 0:02:06.4]} 28... Nd4+ {[%clk
0:00:04.6]} 29. Ke3 {[%clk 0:02:06.9]} 29... Nf5+ {[%clk 0:00:05.1]} 30. Kd3
{[%clk 0:02:07.1]} 30... Kc6 {[%clk 0:00:03]} 31. g4 {[%clk 0:02:06.3]} 1-0

[Event "*** Titled Tuesday Blitz"]
[Site "Chess.com"]
[Date "2020.05.26"]
[Round "4"]
[White "fabianvivasz"]
[Black "MateSchmate"]
[Result "1-0"]
[WhiteElo "2294"]
[BlackElo "2398"]
[TimeControl "180+1"]
[EndTime "10:36:41 PDT"]
[Termination "fabianvivasz won by checkmate"]

1. e4 {[%clk 0:03:00.9]} 1... e6 {[%clk 0:02:59.9]} 2. d4 {[%clk 0:03:00.2]}
2... d5 {[%clk 0:03:00.4]} 3. Nd2 {[%clk 0:03:00.8]} 3... a6 {[%clk 0:02:59.6]}
4. Ngf3 {[%clk 0:02:54.3]} 4... Nf6 {[%clk 0:02:59.2]} 5. e5 {[%clk 0:02:53]}
5... Nfd7 {[%clk 0:02:59.7]} 6. Bd3 {[%clk 0:02:53.4]} 6... c5 {[%clk
0:02:59.9]} 7. c3 {[%clk 0:02:54]} 7... Nc6 {[%clk 0:03:00.3]} 8. O-O {[%clk
0:02:53.8]} 8... g5 {[%clk 0:03:00.7]} 9. dxc5 {[%clk 0:02:26.1]} 9... g4 {[%clk
0:02:59.7]} 10. Nd4 {[%clk 0:02:25.7]} 10... Ncxe5 {[%clk 0:02:59.9]} 11. Be2
{[%clk 0:02:12.2]} 11... h5 {[%clk 0:02:56.3]} 12. f4 {[%clk 0:02:10.3]} 12...
gxf3 {[%clk 0:02:53.1]} 13. N2xf3 {[%clk 0:02:10.1]} 13... Nxf3+ {[%clk
0:02:49.7]} 14. Bxf3 {[%clk 0:02:09.2]} 14... Qh4 {[%clk 0:02:32.6]} 15. g3
{[%clk 0:02:03.2]} 15... Qh3 {[%clk 0:02:29.1]} 16. b4 {[%clk 0:01:13.5]} 16...
Ne5 {[%clk 0:02:24]} 17. Bf4 {[%clk 0:01:03.4]} 17... Ng4 {[%clk 0:02:19]} 18.
Qe2 {[%clk 0:00:55.9]} 18... Bh6 {[%clk 0:02:01.3]} 19. Bxh6 {[%clk 0:00:39.8]}
19... Rxh6 {[%clk 0:02:02.2]} 20. Rae1 {[%clk 0:00:37.8]} 20... Rg6 {[%clk
0:01:51.5]} 21. Nf5 {[%clk 0:00:33]} 21... Bd7 {[%clk 0:01:37.7]} 22. Nd6+
{[%clk 0:00:32.6]} 22... Kf8 {[%clk 0:01:37.6]} 23. Bxg4 {[%clk 0:00:31]} 23...
Rxg4 {[%clk 0:01:26.7]} 24. Rxf7+ {[%clk 0:00:30.9]} 24... Kg8 {[%clk
0:01:26.9]} 25. Rxd7 {[%clk 0:00:29.3]} 25... Rf8 {[%clk 0:01:25.1]} 26. Qxe6+
{[%clk 0:00:24.3]} 26... Kh8 {[%clk 0:01:25.2]} 27. Qh6+ {[%clk 0:00:24.2]}
27... Kg8 {[%clk 0:01:25.5]} 28. Qh7# {[%clk 0:00:24.9]} 1-0

[Event "*** Titled Tuesday Blitz"]
[Site "Chess.com"]
[Date "2020.05.26"]
[Round "4"]
[White "MilosJi"]
[Black "SantoBlue"]
[Result "0-1"]
[WhiteElo "2523"]
[BlackElo "2791"]
[TimeControl "180+1"]
[EndTime "10:37:01 PDT"]
[Termination "SantoBlue won by resignation"]

1. Nf3 {[%clk 0:03:00.9]} 1... Nf6 {[%clk 0:02:59.5]} 2. c4 {[%clk 0:03:00.8]}
2... e6 {[%clk 0:02:59.4]} 3. g3 {[%clk 0:03:00.3]} 3... b6 {[%clk 0:02:59.3]}
4. Bg2 {[%clk 0:02:59.9]} 4... Bb7 {[%clk 0:03:00.2]} 5. O-O {[%clk 0:02:59.7]}
5... Be7 {[%clk 0:02:59.6]} 6. d4 {[%clk 0:02:58.1]} 6... O-O {[%clk 0:02:59.5]}
7. Nc3 {[%clk 0:02:58]} 7... Ne4 {[%clk 0:02:59.4]} 8. Qc2 {[%clk 0:02:58.2]}
8... Nxc3 {[%clk 0:02:56.2]} 9. Qxc3 {[%clk 0:02:59.1]} 9... Be4 {[%clk
0:02:54.7]} 10. b3 {[%clk 0:02:57.9]} 10... d5 {[%clk 0:02:50.7]} 11. Bb2 {[%clk
0:02:52.1]} 11... Nd7 {[%clk 0:02:50.8]} 12. Rac1 {[%clk 0:02:50.3]} 12... c6
{[%clk 0:02:48.2]} 13. Rfd1 {[%clk 0:02:44.4]} 13... a5 {[%clk 0:02:46.3]} 14.
a3 {[%clk 0:02:37.6]} 14... b5 {[%clk 0:02:40.9]} 15. cxd5 {[%clk 0:02:32.5]}
15... cxd5 {[%clk 0:02:40.4]} 16. Qd2 {[%clk 0:02:31.3]} 16... a4 {[%clk
0:02:37.6]} 17. Ne5 {[%clk 0:02:21.6]} 17... Nxe5 {[%clk 0:02:32.3]} 18. Bxe4
{[%clk 0:02:00.3]} 18... dxe4 {[%clk 0:02:31.9]} 19. dxe5 {[%clk 0:02:00]} 19...
Qxd2 {[%clk 0:02:32.7]} 20. Rxd2 {[%clk 0:02:00]} 20... axb3 {[%clk 0:02:33.6]}
21. Rc3 {[%clk 0:01:58.5]} 21... b4 {[%clk 0:02:32.9]} 22. Rxb3 {[%clk
0:01:53.3]} 22... bxa3 {[%clk 0:02:32.5]} 23. Ba1 {[%clk 0:01:53]} 23... Rfb8
{[%clk 0:02:32.3]} 24. Rxb8+ {[%clk 0:01:36.5]} 24... Rxb8 {[%clk 0:02:33.2]}
25. Kg2 {[%clk 0:01:34]} 25... h5 {[%clk 0:02:27.2]} 26. Rd7 {[%clk 0:01:32.7]}
26... Bf8 {[%clk 0:02:26.7]} 27. Ra7 {[%clk 0:01:31.3]} 27... Rb1 {[%clk
0:02:24.2]} 28. Bd4 {[%clk 0:01:30.3]} 28... Rd1 {[%clk 0:02:18.4]} 29. e3
{[%clk 0:01:28.4]} 29... g6 {[%clk 0:02:17]} 30. Ra8 {[%clk 0:01:21.5]} 30...
Kg7 {[%clk 0:02:15.9]} 31. Ra7 {[%clk 0:01:21.4]} 31... g5 {[%clk 0:02:12.4]}
32. h3 {[%clk 0:01:18.8]} 32... Rd2 {[%clk 0:02:07]} 33. g4 {[%clk 0:01:16.7]}
33... hxg4 {[%clk 0:02:03]} 34. hxg4 {[%clk 0:01:16.4]} 34... a2 {[%clk
0:02:03.9]} 35. Ra4 {[%clk 0:01:14.8]} 35... Rc2 {[%clk 0:02:03.1]} 36. Ra7
{[%clk 0:01:12.7]} 36... Bb4 {[%clk 0:01:55.8]} 37. Ra4 {[%clk 0:01:11.9]} 37...
Be1 {[%clk 0:01:55.6]} 38. Kf1 {[%clk 0:00:51.8]} 38... Bxf2 {[%clk 0:01:54.9]}
39. Ra7 {[%clk 0:00:51.3]} 39... Rd2 {[%clk 0:01:37.1]} 40. Ra6 {[%clk
0:00:49.6]} 40... Bxe3 {[%clk 0:01:34.7]} 41. Bxe3 {[%clk 0:00:46.2]} 41... Rd1+
{[%clk 0:01:34.3]} 0-1